fUSD/lending_fUSD_20240530
["ID","MTS","AMOUNT","RATE_DAILY","PERIOD"]
[328200555,1717055433301,-500.0,0.00029273,7]
[328200556,1717055433310,-500.0,0.00029273,7]
[328200557,1717055433319,-500.0,0.00029273,7]
[328200558,1717055433328,-500.0,0.00029273,7]
[328200559,1717055433338,-500.0,0.00029273,7]
[328200560,1717055433347,-500.0,0.00029273,7]
[328200561,1717055433356,-500.0,0.00029273,7]
[328200562,1717055433365,-221.60197839,0.00029273,7]
[328200563,1717055433411,-278.39802161,0.00029273,7]
[328200564,1717055433421,-500.0,0.00029273,7]
[328200565,1717055433430,-622.42530775,0.00029273,7]
[328200566,1717055433440,-500.0,0.00029273,7]
[328200567,1717055433450,-124.77072119,0.00029273,7]
[328200568,1717055433462,-375.22927881,0.00029273,7]
[328200569,1717055433472,-500.0,0.00029273,7]
[328200570,1717055433481,-500.0,0.00029273,7]
[328200571,1717055433491,-500.0,0.00029273,7]
[328200572,1717055433500,-500.0,0.00029273,7]
[328200573,1717055433511,-421.67639802,0.00029273,7]
[328200574,1717055433850,151.7,0.00031,90]
[328200585,1717055437726,-303.46834692,0.00017129,2]
[328200586,1717055437736,-500.0,0.00028999,7]
[328200587,1717055437746,-500.0,0.00028999,7]
[328200588,1717055437756,-500.0,0.00028999,7]
[328200589,1717055437767,-78.32360198,0.00029273,7]
[328200590,1717055437776,-416.55296206,0.00029273,7]
[328200591,1717055437788,-83.44703794,0.00029273,7]
[328200592,1717055437800,-500.0,0.00029273,7]
[328200593,1717055437810,-500.0,0.00029273,7]
[328200594,1717055437819,-394.81470622,0.00029273,7]
[328200595,1717055437839,-105.18529378,0.00029273,7]
[328200596,1717055437849,-532.97999092,0.00029273,7]
[328200597,1717055437858,-500.0,0.00029273,7]
[328200598,1717055437867,-500.0,0.00029273,7]
[328200599,1717055437877,-500.0,0.00029273,7]
[328200600,1717055437889,-500.0,0.00029273,7]
[328200601,1717055437899,-517.304793,0.00029273,7]
[328200602,1717055437908,-500.0,0.00029273,7]
[328200603,1717055437918,-500.0,0.00029315,6]
[328200604,1717055437928,-408.39,0.00029436,2]
[328200605,1717055437937,-500.0,0.00029547,7]
[328200606,1717055437946,-500.0,0.00029547,7]
[328200607,1717055437956,-561.4094034,0.00029547,7]
[328200608,1717055437968,-500.0,0.00029547,7]
[328200609,1717055437977,-512.64202437,0.00029547,7]
[328200610,1717055437986,-1035.61,0.00029547,2]
[328200611,1717055437995,-500.0,0.00029547,7]
[328200612,1717055438005,-500.0,0.00029547,7]
[328200613,1717055438014,-500.0,0.00029547,7]
[328200614,1717055438024,-500.0,0.00029547,7]
[328200615,1717055438034,-500.0,0.00029547,7]
[328200616,1717055438044,-500.0,0.00029547,7]
[328200617,1717055438056,-500.0,0.00029547,7]
[328200618,1717055438066,-500.0,0.00029547,7]
[328200619,1717055438076,-500.0,0.00029547,7]
[328200620,1717055438085,-500.0,0.00029547,7]
[328200621,1717055438094,-500.0,0.00029547,7]
[328200622,1717055438104,-500.0,0.00029547,7]
[328200623,1717055438113,-500.0,0.00029547,7]
[328200624,1717055438123,-500.0,0.00029547,7]
[328200625,1717055438131,-500.0,0.00029547,7]
[328200626,1717055438141,-500.0,0.00029547,7]
[328200627,1717055438150,-500.0,0.00029547,7]
[328200628,1717055438160,-500.0,0.00029547,7]
[328200629,1717055438169,-500.0,0.00029547,7]
[328200630,1717055438178,-500.0,0.00029547,7]
[328200631,1717055438188,-500.0,0.00029547,7]
[328200633,1717055438197,-500.0,0.00029547,7]
[328200634,1717055438206,-500.0,0.00029547,7]
[328200635,1717055438215,-510.03554907,0.00029547,7]
[328200636,1717055438224,-500.0,0.00029589,7]
[328200637,1717055438233,-150.0,0.00029696,2]
[328200638,1717055438242,-152.09644985,0.00029718,2]
[328200639,1717055438251,-152.8816762,0.00029732,2]
[328200640,1717055438260,-500.0,0.00029809,2]
[328200641,1717055438270,-200.0,0.00029809,2]
[328200642,1717055438279,-886.86936652,0.0002982,2]
[328200643,1717055438289,-500.0,0.00029821,7]
[328200644,1717055438300,-500.0,0.00029821,7]
[328200645,1717055438309,-500.0,0.00029821,7]
[328200646,1717055438318,-1035.61,0.00029821,2]
[328200647,1717055438328,-358.58693863,0.00029821,7]
[328200648,1717055438337,-500.0,0.00029821,7]
[328200649,1717055438347,-500.0,0.00029821,7]
[328200650,1717055438357,-500.0,0.00029821,7]
[328200651,1717055438366,-500.0,0.00029821,7]
[328200652,1717055438376,-500.0,0.00029821,7]
[328200653,1717055438385,-500.0,0.00029821,7]
[328200654,1717055438395,-500.0,0.00029821,7]
[328200655,1717055438404,-500.0,0.00029821,7]
[328200656,1717055438414,-500.0,0.00029821,7]
[328200657,1717055438423,-500.0,0.00029821,7]
[328200658,1717055438432,-500.0,0.00029821,7]
[328200659,1717055438442,-527.02439027,0.00029821,7]
[328200660,1717055438452,-500.0,0.00029821,7]
[328200661,1717055438461,-577.26542647,0.00029821,7]
[328200662,1717055438470,-542.84784669,0.00029821,7]
[328200663,1717055438480,-500.0,0.00029821,7]
[328200664,1717055438489,-500.0,0.00029821,7]
[328200665,1717055438499,-500.0,0.00029821,7]
[328200666,1717055438508,-500.0,0.00029821,7]
[328200667,1717055438518,-500.0,0.00029821,7]
[328200668,1717055438527,-338.67370113,0.00029821,2]
[328200669,1717055438536,-500.0,0.00029821,7]
[328200670,1717055438545,-500.0,0.00029821,7]
[328200671,1717055438557,-500.0,0.00029863,8]
[328200672,1717055438566,-152.09644985,0.0002987,2]
[328200673,1717055438576,-152.31111218,0.00029913,2]
[328200674,1717055438669,-184.67992165,0.00029914,2]
[328200675,1717055438679,-338.67370113,0.0002994,2]
[328200676,1717055438689,-152.8816762,0.00029996,2]
[328200677,1717055438698,-156.05148066,0.00029997,2]
[328200678,1717055438708,-232.81271805,0.0003,2]
[328200679,1717055438717,-4093.42672342,0.0003,4]
[328200680,1717055438727,-500.0,0.0003,2]
[328200681,1717055438736,-2500.15032958,0.0003,14]
[328200682,1717055438746,-150.0,0.00030036,2]
[328200683,1717055438755,-338.67370113,0.00030044,7]
[328200685,1717055438765,-327.0,0.00030045,2]
[328200687,1717055438774,-1645.0,0.00030045,2]
[328200688,1717055438784,-440.0,0.00030045,2]
[328200690,1717055438794,-1265.0,0.00030045,2]
[328200692,1717055438806,-614.0,0.00030045,2]
[328200694,1717055438815,-342.869,0.00030045,2]
[328200696,1717055438824,-1063.0,0.00030045,2]
[328200698,1717055438834,-500.0,0.00030095,7]
[328200701,1717055438844,-500.0,0.00030095,7]
[328200703,1717055438853,-500.0,0.00030095,7]
[328200704,1717055438863,-1035.61,0.00030095,2]
[328200706,1717055438872,-500.0,0.00030095,7]
[328200707,1717055438882,-500.0,0.00030095,7]
[328200709,1717055438896,-500.0,0.00030095,7]
[328200711,1717055438905,-500.0,0.00030095,7]
[328200712,1717055438914,-500.0,0.00030095,7]
[328200713,1717055438926,-500.0,0.00030095,7]
[328200714,1717055438935,-500.0,0.00030095,7]
[328200715,1717055438946,-500.0,0.00030095,7]
[328200716,1717055438955,-500.0,0.00030095,7]
[328200717,1717055438967,-500.0,0.00030095,7]
[328200718,1717055438977,-500.0,0.00030095,7]
[328200719,1717055438987,-500.0,0.00030095,7]
[328200720,1717055438996,-443.32247497,0.00030095,7]
[328200721,1717055439006,-497.38852788,0.00030095,7]
[328200722,1717055439015,-500.0,0.00030095,7]
[328200723,1717055439024,-500.0,0.00030095,7]
[328200724,1717055439034,-500.0,0.00030095,7]
[328200725,1717055439043,-500.0,0.00030095,7]
[328200726,1717055439054,-500.0,0.00030095,7]
[328200727,1717055439064,-153.53255152,0.00030099,7]
[328200728,1717055439073,-1070.48652848,0.00030122,2]
[328200729,1717055439082,-152.8816762,0.00030135,7]
[328200730,1717055439092,-500.0,0.00030136,9]
[328200731,1717055439102,-338.67370113,0.00030146,7]
[328200732,1717055439112,-338.67370113,0.00030308,7]
[328200733,1717055439121,-152.31111218,0.00030318,7]
[328200734,1717055439131,-173.60413058,0.00030324,7]
[328200735,1717055439140,-150.0,0.0003034,2]
[328200736,1717055439150,-500.0,0.00030369,7]
[328200737,1717055439160,-500.0,0.00030369,7]
[328200738,1717055439170,-500.0,0.00030369,7]
[328200739,1717055439179,-1035.61,0.00030369,2]
[328200740,1717055439189,-500.0,0.00030369,7]
[328200741,1717055439198,-549.99649489,0.00030369,7]
[328200742,1717055439208,-202.00038423,0.00030369,7]
[328200743,1717055439217,-500.0,0.00030369,7]
[328200744,1717055439227,-500.0,0.00030369,7]
[328200745,1717055439236,-500.0,0.00030369,7]
[328200746,1717055439245,-529.308234,0.00030369,7]
[328200747,1717055439254,-500.0,0.00030369,7]
[328200748,1717055439263,-500.0,0.00030369,7]
[328200749,1717055439273,-500.0,0.00030369,7]
[328200750,1717055439283,-285.20153867,0.00030369,7]
[328200751,1717055439292,-500.0,0.00030369,7]
[328200752,1717055439303,-500.0,0.00030369,7]
[328200753,1717055439312,-500.0,0.00030369,7]
[328200754,1717055439321,-500.0,0.00030369,7]
[328200755,1717055439331,-384.77182808,0.00030369,7]
[328200756,1717055439340,-500.0,0.00030369,7]
[328200757,1717055439349,-1500.0,0.00030377,2]
[328200758,1717055439358,-1020.27358907,0.0003038,2]
[328200759,1717055439367,-150.0,0.00030388,2]
[328200760,1717055439377,-154.08593147,0.00030396,7]
[328200761,1717055439386,-150.0,0.00030396,2]
[328200762,1717055439395,-354.0,0.000304,2]
[328200763,1717055439405,-1000.0,0.000304,2]
[328200764,1717055439415,-224.0,0.000304,2]
[328200765,1717055439424,-508.3,0.000304,2]
[328200766,1717055439434,-500.0,0.0003041,10]
[328200767,1717055439444,-152.8816762,0.00030414,7]
[328200768,1717055439454,-338.67370113,0.00030421,7]
[328200769,1717055439464,-166.66666667,0.00030447,7]
[328200770,1717055439474,-184.67992166,0.00030451,7]
[328200772,1717055439483,-150.0,0.00030509,2]
[328200774,1717055439492,-166.65634609,0.0003054,7]
[328200775,1717055439502,-150.61262182,0.0003054,7]
[328200776,1717055439511,-153.53255152,0.00030589,7]
[328200777,1717055439521,-166.66666668,0.00030602,7]
[328200778,1717055439530,-150.0,0.00030603,2]
[328200779,1717055439540,-517.08979072,0.00030643,7]
[328200780,1717055439550,-500.0,0.00030643,7]
[328200781,1717055439559,-278.53793933,0.00030643,7]
[328200782,1717055439567,-1035.61,0.00030643,2]
[328200783,1717055439576,-500.0,0.00030643,7]
[328200784,1717055439586,-544.81347627,0.00030643,7]
[328200785,1717055439595,-500.0,0.00030643,7]
[328200786,1717055439604,-500.0,0.00030643,7]
[328200787,1717055439613,-500.0,0.00030643,7]
[328200788,1717055439623,-500.0,0.00030643,7]
[328200789,1717055439633,-594.54474646,0.00030643,7]
[328200790,1717055439643,-500.0,0.00030643,7]
[328200791,1717055439652,-500.0,0.00030643,7]
[328200792,1717055439661,-485.27111847,0.00030643,7]
[328200793,1717055439671,-500.0,0.00030643,7]
[328200794,1717055439680,-500.0,0.00030643,7]
[328200795,1717055439690,-155.58128738,0.00030674,7]
[328200796,1717055439699,-152.31111218,0.00030677,7]
[328200797,1717055439709,-500.0,0.00030684,11]
[328200798,1717055439719,-155.58128738,0.00030716,7]
[328200799,1717055439728,-338.67370113,0.00030724,7]
[328200800,1717055439739,-152.64927982,0.00030767,7]
[328200801,1717055439749,-150.0,0.00030767,2]
[328200802,1717055439759,-2241.50698,0.0003079,2]
[328200803,1717055439768,-150.0,0.00030793,2]
[328200804,1717055439778,-152.64927982,0.00030811,7]
[328200805,1717055439788,-150.0,0.00030822,2]
[328200806,1717055439799,-150.0,0.00030825,2]
[328200807,1717055439809,-152.31111218,0.00030864,7]
[328200808,1717055439819,-150.0,0.00030871,2]
[328200809,1717055439829,-150.61262182,0.00030876,7]
[328200810,1717055439839,-152.8816762,0.00030887,7]
[328200811,1717055439849,-150.0,0.000309,2]
[328200812,1717055439944,-500.0,0.00030917,7]
[328200813,1717055439956,-1035.61,0.00030917,2]
[328200814,1717055439966,-369.05383317,0.00030917,7]
[328200815,1717055439977,-258.52945545,0.00030917,7]
[328200816,1717055439987,-500.0,0.00030917,7]
[328200817,1717055439996,-500.0,0.00030917,7]
[328200818,1717055440007,-500.0,0.00030917,7]
[328200819,1717055440016,-632.42860321,0.00030917,7]
[328200820,1717055440026,-500.0,0.00030917,7]
[328200821,1717055440035,-500.0,0.00030917,7]
[328200822,1717055440045,-500.0,0.00030917,7]
[328200823,1717055440057,-370.18398938,0.00030958,12]
[328200824,1717055440066,-2145.93552418,0.0003099,10]
[328200825,1717055440075,-279.9268,0.00030995,2]
[328200826,1717055440084,-9395.0252,0.00030995,2]
[328200827,1717055440093,-169.36934527,0.00031,2]
[328200828,1717055440103,-155.4798972,0.00031,2]
[328200829,1717055440112,-7868.4444324,0.00031,2]
[328200830,1717055440122,-174.30997392,0.00031,2]
[328200831,1717055440131,-1070.27376074,0.00031,2]
[328200832,1717055440141,-818.44677147,0.00031,10]
[328200833,1717055440150,-150.0,0.00031,6]
[328200834,1717055440159,-318.61145935,0.00031,2]
[328200835,1717055440169,-934.8581638,0.00031,2]
[328200836,1717055440179,-5380.49248382,0.00031,2]
[328200837,1717055440188,-168.28119332,0.00031006,7]
[328200838,1717055440198,-338.67370113,0.0003102,7]
[328200839,1717055440207,-292.46,0.00031089,2]
[328200840,1717055440217,-151.33,0.0003109,2]
[328200841,1717055440226,-151.33,0.0003109,2]
[328200842,1717055440236,-151.33,0.0003109,2]
[328200843,1717055440246,-151.33,0.0003109,2]
[328200844,1717055440255,-151.33,0.0003109,2]
[328200845,1717055440264,-151.33,0.0003109,2]
[328200846,1717055440273,-151.33,0.0003109,2]
[328200847,1717055440282,-151.33,0.0003109,2]
[328200848,1717055440292,-151.33,0.0003109,2]
[328200849,1717055440302,-151.33,0.0003109,2]
[328200850,1717055440312,-151.33,0.0003109,2]
[328200851,1717055440321,-292.46,0.0003109,2]
[328200852,1717055440330,-292.46,0.0003109,2]
[328200853,1717055440339,-292.46,0.0003109,2]
[328200854,1717055440348,-292.46,0.0003109,2]
[328200855,1717055440357,-292.46,0.0003109,2]
[328200856,1717055440367,-292.46,0.0003109,2]
[328200857,1717055440376,-292.46,0.0003109,2]
[328200858,1717055440385,-292.46,0.0003109,2]
[328200859,1717055440394,-292.46,0.0003109,2]
[328200860,1717055440403,-12402.2225813,0.00031095,2]
[328200861,1717055440414,-2830.8439441,0.00031095,2]
[328200862,1717055440423,-726.74,0.00031099,7]
[328200863,1717055440433,-1000.0,0.00031099,5]
[328200864,1717055440441,-500.0,0.00031099,7]
[328200865,1717055440451,-500.0,0.00031099,7]
[328200866,1717055440460,-500.0,0.00031099,7]
[328200867,1717055440470,-500.0,0.00031099,7]
[328200868,1717055440479,-539.02866572,0.00031099,7]
[328200869,1717055440488,-500.0,0.00031099,7]
[328200870,1717055440497,-530.12445759,0.00031099,7]
[328200871,1717055440506,-500.0,0.00031099,7]
[328200872,1717055440527,-535.71597964,0.00031099,7]
[328200873,1717055440544,-647.97,0.00031099,7]
[328200874,1717055440564,-601.98,0.00031099,7]
[328200875,1717055440584,-500.0,0.00031099,7]
[328200876,1717055440602,-580.32,0.00031099,7]
[328200877,1717055440620,-500.0,0.00031099,7]
[328200878,1717055440634,-500.0,0.00031099,7]
[328200879,1717055440651,-698.54,0.00031099,7]
[328200880,1717055440670,-500.0,0.00031099,7]
[328200881,1717055440689,-500.0,0.00031099,7]
[328200882,1717055440702,-500.0,0.00031099,7]
[328200883,1717055440721,-547.42,0.00031099,7]
[328200884,1717055440736,-500.0,0.00031099,7]
[328200885,1717055440752,-500.0,0.00031099,7]
[328200886,1717055440767,-500.0,0.00031099,7]
[328200887,1717055440783,-500.0,0.00031099,7]
[328200888,1717055440799,-500.0,0.00031099,7]
[328200889,1717055440817,-500.0,0.00031099,7]
[328200890,1717055440832,-537.23463995,0.00031099,7]
[328200891,1717055440848,-500.0,0.00031099,7]
[328200892,1717055440864,-522.76215513,0.00031099,7]
[328200893,1717055440880,-500.0,0.00031099,7]
[328200894,1717055440898,-1479.22,0.00031099,7]
[328200895,1717055440914,-500.0,0.00031099,7]
[328200896,1717055440930,-500.0,0.00031099,7]
[328200897,1717055440946,-1368.11,0.00031099,7]
[328200898,1717055440961,-500.0,0.00031099,7]
[328200899,1717055440978,-500.0,0.00031099,7]
[328200900,1717055440993,-500.0,0.00031099,7]
[328200901,1717055441008,-2663.27,0.00031099,7]
[328200902,1717055441024,-556.02845932,0.00031099,7]
[328200903,1717055441040,-511.1,0.00031099,7]
[328200904,1717055441056,-500.0,0.00031099,7]
[328200905,1717055441070,-500.0,0.00031099,7]
[328200906,1717055441085,-500.0,0.00031099,7]
[328200907,1717055441100,-500.0,0.00031099,7]
[328200908,1717055441116,-500.0,0.00031099,7]
[328200909,1717055441131,-541.12593277,0.00031099,7]
[328200910,1717055441147,-500.0,0.00031099,7]
[328200911,1717055441162,-530.44739144,0.00031099,7]
[328200912,1717055441176,-513.20963658,0.00031099,7]
[328200913,1717055441192,-500.0,0.00031099,7]
[328200914,1717055441207,-500.0,0.00031099,7]
[328200915,1717055441222,-500.0,0.00031099,7]
[328200916,1717055441236,-500.0,0.00031099,7]
[328200917,1717055441251,-500.0,0.00031099,7]
[328200918,1717055441266,-500.0,0.00031099,7]
[328200919,1717055441281,-500.0,0.00031099,7]
[328200920,1717055441296,-713.41,0.00031099,7]
[328200921,1717055441311,-500.0,0.00031099,7]
[328200922,1717055441325,-500.0,0.00031099,7]
[328200923,1717055441342,-500.0,0.00031099,7]
[328200924,1717055441356,-500.0,0.00031099,7]
[328200925,1717055441465,-500.0,0.00031099,7]
[328200926,1717055441490,-3136.3,0.00031099,7]
[328200927,1717055441499,-500.0,0.00031099,7]
[328200928,1717055441508,-500.0,0.00031099,7]
[328200929,1717055441519,-500.0,0.00031099,7]
[328200930,1717055441528,-500.0,0.00031099,7]
[328200931,1717055441538,-1532.17,0.00031099,7]
[328200932,1717055441550,-500.0,0.00031099,7]
[328200933,1717055441559,-500.0,0.00031099,7]
[328200934,1717055441569,-500.0,0.00031099,7]
[328200935,1717055441578,-500.0,0.00031099,7]
[328200936,1717055441587,-500.0,0.00031099,2]
[328200937,1717055441595,-523.11570247,0.00031099,7]
[328200938,1717055441604,-835.74,0.00031099,7]
[328200939,1717055441613,-500.0,0.00031099,7]
[328200940,1717055441622,-500.0,0.00031099,7]
[328200941,1717055441632,-500.0,0.00031099,7]
[328200942,1717055441641,-51954.03387536,0.00031099,2]
[328200943,1717055441651,-500.0,0.00031099,7]
[328200944,1717055441661,-500.0,0.00031099,2]
[328200945,1717055441670,-514.14930893,0.00031099,7]
[328200946,1717055441679,-500.0,0.00031099,7]
[328200947,1717055441688,-500.0,0.00031099,7]
[328200948,1717055441697,-587.5395574,0.00031099,7]
[328200949,1717055441706,-229.25599054,0.00031099,7]
[328200950,1717055441716,-500.0,0.00031099,7]
[328200951,1717055441725,-500.0,0.00031099,7]
[328200952,1717055441735,-500.0,0.00031099,2]
[328200953,1717055441744,-500.0,0.00031099,7]
[328200954,1717055441754,-534.9410966,0.00031099,7]
[328200955,1717055441765,-500.0,0.00031099,7]
[328200956,1717055441774,-500.0,0.00031099,7]
[328200957,1717055441784,-1013.59,0.00031099,7]
[328200958,1717055441793,-797.59,0.00031099,7]
[328200959,1717055441803,-500.0,0.00031099,7]
[328200960,1717055441813,-500.0,0.00031099,7]
[328200961,1717055441822,-500.0,0.00031099,7]
[328200962,1717055441831,-500.0,0.00031099,7]
[328200963,1717055441840,-500.0,0.00031099,7]
[328200964,1717055441850,-500.0,0.00031099,7]
[328200965,1717055441859,-522.16033263,0.00031099,7]
[328200966,1717055441868,-500.0,0.00031099,7]
[328200967,1717055441879,-500.0,0.00031099,7]
[328200968,1717055441892,-500.0,0.00031099,7]
[328200969,1717055441901,-500.0,0.00031099,7]
[328200970,1717055441910,-500.0,0.00031099,7]
[328200971,1717055441919,-500.0,0.00031099,7]
[328200972,1717055441931,-500.0,0.00031099,7]
[328200973,1717055441940,-500.0,0.00031099,7]
[328200974,1717055441949,-500.0,0.00031099,7]
[328200975,1717055441959,-1189.32,0.00031099,7]
[328200976,1717055441968,-500.0,0.00031099,7]
[328200977,1717055441977,-1038.6,0.00031099,7]
[328200978,1717055441987,-500.0,0.00031099,7]
[328200979,1717055441996,-500.0,0.00031099,7]
[328200980,1717055442007,-500.0,0.00031099,7]
[328200981,1717055442016,-4815.19,0.00031099,7]
[328200982,1717055442025,-500.0,0.00031099,7]
[328200983,1717055442034,-531.14522443,0.00031099,7]
[328200984,1717055442044,-2416.77,0.00031099,7]
[328200985,1717055442054,-500.0,0.00031099,7]
[328200986,1717055442063,-500.0,0.00031099,7]
[328200987,1717055442072,-277.62899813,0.00031099,2]
[328200988,1717055442081,-500.0,0.00031099,2]
[328200989,1717055442091,-236.20903743,0.00031099,2]
[328200990,1717055442100,-217.0,0.000311,5]
[328200991,1717055442109,-663.64851174,0.000311,11]
[328200992,1717055442118,-909568.78233092,0.000311,5]
[328200998,1717055442564,-500.0,0.00029547,7]
[328200999,1717055442573,-2329.41991002,0.000311,5]
[328201000,1717055442601,-1679500.93576963,0.000311,5]
[328201001,1717055442611,-200.0,0.000311,2]
[328201003,1717055442620,-500.0,0.000311,5]
[328201005,1717055442629,-501.0,0.000311,15]
[328201006,1717055442639,-344.0,0.000311,3]
[328201008,1717055442648,-344.0,0.000311,3]
[328201010,1717055442657,-150.0,0.000311,4]
[328201012,1717055442667,-487.0,0.000311,15]
[328201014,1717055442676,-191.0,0.000311,15]
[328201016,1717055442686,-170.00621532,0.000311,4]
[328201018,1717055442695,-2000.0,0.000311,5]
[328201019,1717055442704,-345.0,0.000311,3]
[328201020,1717055442713,-229.0,0.000311,2]
[328201021,1717055442722,-217.0,0.000311,2]
[328201022,1717055442731,-217.0,0.000311,2]
[328201023,1717055442740,-220.0,0.000311,2]
[328201024,1717055442750,-220.0,0.000311,2]
[328201025,1717055442760,-220.0,0.000311,2]
[328201026,1717055442769,-220.0,0.000311,2]
[328201027,1717055442779,-1503.17,0.000311,2]
[328201028,1717055442788,-1827.35,0.000311,2]
[328201029,1717055442797,-270.0,0.000311,2]
[328201030,1717055442808,-270.0,0.000311,2]
[328201031,1717055442818,-270.0,0.000311,2]
[328201032,1717055442827,-270.0,0.000311,2]
[328201033,1717055442837,-260.0,0.000311,2]
[328201034,1717055442848,-260.0,0.000311,2]
[328201035,1717055442857,-260.0,0.000311,2]
[328201036,1717055442867,-260.0,0.000311,2]
[328201037,1717055442877,-174.0,0.000311,2]
[328201038,1717055442889,-160.0,0.000311,3]
[328201039,1717055442898,-151.0,0.000311,7]
[328201040,1717055442908,-150.0,0.000311,3]
[328201041,1717055442916,-500.0,0.000311,2]
[328201042,1717055442927,-1597.6661,0.000311,2]
[328201043,1717055442936,-1597.6661,0.000311,2]
[328201044,1717055442945,-3235.7056,0.000311,2]
[328201045,1717055442954,-3235.7056,0.000311,2]
[328201046,1717055442965,-898.8695,0.000311,2]
[328201047,1717055442975,-898.8695,0.000311,2]
[328201048,1717055442985,-1000.0,0.000311,11]
[328201049,1717055442994,-319.16,0.000311,2]
[328201050,1717055443003,-2199.93574487,0.00031116,2]
[328201051,1717055443028,-3350.0,0.00031116,2]
[328201052,1717055443429,-500.0,0.00028999,7]
[328201055,1717055443438,-150.0,0.00029704,2]
[328201056,1717055443448,-500.0,0.00029821,7]
[328201057,1717055443457,-104.20220342,0.00030095,7]
[328201058,1717055443469,-395.79779658,0.00030095,7]
[328201059,1717055443478,-150.0,0.00030355,2]
[328201060,1717055443487,-500.0,0.00030369,7]
[328201061,1717055443496,-150.0,0.000306,2]
[328201062,1717055443505,-500.0,0.00030643,7]
[328201064,1717055443514,-94.52010332,0.00030917,7]
[328201066,1717055443526,-70.80773593,0.00030917,7]
[328201068,1717055443536,-2061.4970974,0.00031,2]
[328201071,1717055443552,-897.59516962,0.00031,2]
[328201073,1717055443562,-262.69387054,0.00031,2]
[328201075,1717055443571,-472.77012663,0.00031099,7]
[328201077,1717055443580,-854.78484136,0.00031116,2]
[328201085,1717055443653,-461.75544879,0.00031099,7]
[328201113,1717055444096,-500.0,0.00028999,7]
[328201114,1717055444198,-6.49560878,0.00031099,7]
[328201115,1717055444228,-329.40439122,0.00031116,2]
[328201116,1717055444241,-475.67259041,0.00031116,2]
[328201117,1717055444252,-3198.06694715,0.00031116,2]
[328201118,1717055444263,-3972.09929284,0.00031116,2]
[328201119,1717055444283,-1309.3021398,0.00031116,2]
[328201120,1717055444295,-40289.17925678,0.00031116,2]
[328201121,1717055444363,-6823.92403971,0.00031116,2]
[328201122,1717055444374,-18852.23379696,0.00031116,2]
[328201123,1717055444383,-150.0,0.00031122,2]
[328201124,1717055444394,-2383.8685846,0.00031137,2]
[328201125,1717055444404,-154.12972106,0.00031137,7]
[328201126,1717055444413,-500.0,0.00031191,7]
[328201127,1717055444423,-1035.61,0.00031191,2]
[328201128,1717055444433,-500.0,0.00031191,7]
[328201129,1717055444443,-500.0,0.00031191,7]
[328201130,1717055444452,-635.42899276,0.00031191,7]
[328201131,1717055444462,-500.0,0.00031191,7]
[328201132,1717055444471,-500.0,0.00031191,7]
[328201133,1717055444482,-500.0,0.00031191,7]
[328201134,1717055444491,-150.0,0.00031199,2]
[328201135,1717055444500,-356.62785771,0.000312,2]
[328201136,1717055444510,-7868.44443237,0.000312,2]
[328201137,1717055444519,-150.61262182,0.00031204,7]